fUST/lending_fUST_20260607
["ID","MTS","AMOUNT","RATE_DAILY","PERIOD"]
[424370261,1780803045000,-500.0,0.00019773,2]
[424370259,1780803045000,-1396.78,0.00019773,2]
[424370263,1780803045000,-500.0,0.00019773,2]
[424370264,1780803045000,-500.0,0.00019773,2]
[424370266,1780803045000,-500.0,0.00019773,2]
[424370274,1780803045000,-549.86472485,0.00019773,2]
[424370265,1780803045000,-500.0,0.00019773,2]
[424370277,1780803045000,-500.0,0.00019773,2]
[424370275,1780803045000,-500.0,0.00019773,2]
[424370258,1780803045000,-742.99,0.00019773,2]
[424370302,1780803045000,-1000.0,0.00019773,2]
[424370282,1780803045000,-522.88,0.00019773,2]
[424370300,1780803045000,-674.68,0.00019773,2]
[424370335,1780803045000,-998.24,0.00019773,2]
[424370346,1780803045000,-500.0,0.00019773,2]
[424370345,1780803045000,-620.29224572,0.00019773,2]
[424370334,1780803045000,-713.49,0.00019773,2]
[424370340,1780803045000,-500.0,0.00019773,2]
[424370341,1780803045000,-500.0,0.00019773,2]
[424370347,1780803045000,-447.808668,0.00019773,2]
[424370336,1780803045000,-500.0,0.00019773,2]
[424370337,1780803045000,-500.0,0.00019773,2]
[424370339,1780803045000,-525.38,0.00019773,2]
[424370338,1780803045000,-614.00484412,0.00019773,2]
[424370342,1780803045000,-733.76,0.00019773,2]
[424370333,1780803045000,-500.0,0.00019773,2]
[424370344,1780803045000,-3950.41,0.00019773,2]
[424370349,1780803045000,-500.0,0.00019773,2]
[424370348,1780803045000,-500.0,0.00019773,2]
[424370298,1780803045000,-500.0,0.00019773,2]
[424370351,1780803045000,-607.77,0.00019773,2]
[424370352,1780803045000,-500.0,0.00019773,2]
[424370356,1780803045000,-1192.95,0.00019773,2]
[424370360,1780803045000,-1457.54,0.00019773,2]
[424370361,1780803045000,-500.0,0.00019773,2]
[424370353,1780803045000,-500.0,0.00019773,2]
[424370357,1780803045000,-500.0,0.00019773,2]
[424370355,1780803045000,-500.0,0.00019773,2]
[424370358,1780803045000,-6487.82,0.00019773,2]
[424370343,1780803045000,-500.0,0.00019773,2]
[424370331,1780803045000,-500.0,0.00019773,2]
[424370350,1780803045000,-500.0,0.00019773,2]
[424370324,1780803045000,-1298.16,0.00019773,2]
[424370328,1780803045000,-569.09,0.00019773,2]
[424370299,1780803045000,-1251.1,0.00019773,2]
[424370297,1780803045000,-500.0,0.00019773,2]
[424370307,1780803045000,-500.0,0.00019773,2]
[424370318,1780803045000,-500.0,0.00019773,2]
[424370317,1780803045000,-500.0,0.00019773,2]
[424370306,1780803045000,-500.0,0.00019773,2]
[424370309,1780803045000,-500.0,0.00019773,2]
[424370312,1780803045000,-736.97,0.00019773,2]
[424370314,1780803045000,-500.0,0.00019773,2]
[424370311,1780803045000,-500.0,0.00019773,2]
[424370316,1780803045000,-1693.22,0.00019773,2]
[424370315,1780803045000,-500.0,0.00019773,2]
[424370319,1780803045000,-543.92300374,0.00019773,2]
[424370313,1780803045000,-466.17672559,0.00019773,2]
[424370330,1780803045000,-3889.67,0.00019773,2]
[424370310,1780803045000,-500.0,0.00019773,2]
[424370321,1780803045000,-1434.8,0.00019773,2]
[424370332,1780803045000,-816.93,0.00019773,2]
[424370329,1780803045000,-500.0,0.00019773,2]
[424370327,1780803045000,-634.28,0.00019773,2]
[424370326,1780803045000,-660.44,0.00019773,2]
[424370325,1780803045000,-2194.64,0.00019773,2]
[424370322,1780803045000,-500.0,0.00019773,2]
[424370323,1780803045000,-500.0,0.00019773,2]
[424370320,1780803045000,-500.0,0.00019773,2]
[424370308,1780803045000,-500.0,0.00019773,2]
[424370411,1780803046000,-799.56,0.00019799,2]
[424370397,1780803046000,-500.0,0.00019798,2]
[424370403,1780803046000,-500.0,0.00019799,2]
[424370407,1780803046000,-500.0,0.00019799,2]
[424370410,1780803046000,-500.0,0.00019799,2]
[424370405,1780803046000,-500.0,0.00019799,2]
[424370401,1780803046000,-500.0,0.00019799,2]
[424370408,1780803046000,-689.14,0.00019799,2]
[424370412,1780803046000,-500.0,0.00019799,2]
[424370406,1780803046000,-2039.38,0.00019799,2]
[424370404,1780803046000,-500.0,0.00019799,2]
[424370413,1780803046000,-500.0,0.00019799,2]
[424370414,1780803046000,-500.0,0.00019799,2]
[424370416,1780803046000,-500.0,0.00019799,2]
[424370399,1780803046000,-526.69,0.00019798,2]
[424370426,1780803046000,-500.0,0.00019799,2]
[424370409,1780803046000,-1317.3,0.00019799,2]
[424370398,1780803046000,-500.0,0.00019798,2]
[424370381,1780803046000,-500.0,0.00019773,2]
[424370400,1780803046000,-500.0,0.00019799,2]
[424370427,1780803046000,-500.0,0.00019799,2]
[424370379,1780803046000,-500.0,0.00019773,2]
[424370387,1780803046000,-500.0,0.00019773,2]
[424370384,1780803046000,-3339.27,0.00019773,2]
[424370380,1780803046000,-606.94,0.00019773,2]
[424370382,1780803046000,-979.71,0.00019773,2]
[424370388,1780803046000,-1252.45,0.00019773,2]
[424370385,1780803046000,-500.0,0.00019773,2]
[424370386,1780803046000,-3448.99,0.00019773,2]
[424370383,1780803046000,-2319.77,0.00019773,2]
[424370390,1780803046000,-500.0,0.00019773,2]
[424370389,1780803046000,-500.0,0.00019773,2]
[424370391,1780803046000,-500.0,0.00019773,2]
[424370393,1780803046000,-784.42,0.00019773,2]
[424370402,1780803046000,-500.0,0.00019799,2]
[424370394,1780803046000,-500.0,0.00019773,2]
[424370396,1780803046000,-500.0,0.00019798,2]
[424370395,1780803046000,-412.76270954,0.00019773,2]
[424370424,1780803046000,-847.57,0.00019799,2]
[424370446,1780803046000,-500.0,0.00019799,2]
[424370415,1780803046000,-500.0,0.00019799,2]
[424370452,1780803046000,-1210.03,0.00019799,2]
[424370453,1780803046000,-500.0,0.00019799,2]
[424370441,1780803046000,-643.19,0.00019799,2]
[424370443,1780803046000,-1102.21,0.00019799,2]
[424370458,1780803046000,-156.04241087,0.00019799,2]
[424370445,1780803046000,-500.0,0.00019799,2]
[424370449,1780803046000,-500.0,0.00019799,2]
[424370442,1780803046000,-500.0,0.00019799,2]
[424370447,1780803046000,-1345.97,0.00019799,2]
[424370450,1780803046000,-503.27,0.00019799,2]
[424370448,1780803046000,-3119.39,0.00019799,2]
[424370455,1780803046000,-369.40092248,0.00019799,2]
[424370456,1780803046000,-230.38258866,0.00019799,2]
[424370454,1780803046000,-500.0,0.00019799,2]
[424370457,1780803046000,-500.0,0.00019726,2]
[424370425,1780803046000,-500.0,0.00019799,2]
[424370451,1780803046000,-500.0,0.00019799,2]
[424370438,1780803046000,-1895.77,0.00019799,2]
[424370444,1780803046000,-500.0,0.00019799,2]
[424370431,1780803046000,-1457.9,0.00019799,2]
[424370417,1780803046000,-723.78,0.00019799,2]
[424370439,1780803046000,-500.0,0.00019799,2]
[424370418,1780803046000,-975.53,0.00019799,2]
[424370421,1780803046000,-500.0,0.00019799,2]
[424370422,1780803046000,-500.0,0.00019799,2]
[424370420,1780803046000,-500.0,0.00019799,2]
[424370419,1780803046000,-500.0,0.00019799,2]
[424370428,1780803046000,-500.0,0.00019799,2]
[424370430,1780803046000,-500.0,0.00019799,2]
[424370423,1780803046000,-500.0,0.00019799,2]
[424370432,1780803046000,-500.0,0.00019799,2]
[424370436,1780803046000,-500.0,0.00019799,2]
[424370434,1780803046000,-163.05178553,0.00019799,2]
[424370440,1780803046000,-500.0,0.00019799,2]
[424370435,1780803046000,-500.0,0.00019799,2]
[424370429,1780803046000,-500.0,0.00019799,2]
[424370437,1780803046000,-500.0,0.00019799,2]
[424370433,1780803046000,-500.0,0.00019799,2]
[424370470,1780803047000,-500.0,0.00019799,2]
[424370474,1780803047000,-635.47811496,0.00019799,2]
[424370472,1780803047000,-297.25403384,0.00019799,2]
[424370473,1780803047000,-500.0,0.00019799,2]
[424370476,1780803047000,-500.0,0.00019799,2]
[424370471,1780803047000,-500.0,0.00019799,2]
[424370468,1780803047000,-1000.23,0.00019799,2]
[424370469,1780803047000,-500.0,0.00019799,2]
[424370477,1780803047000,-2229.32,0.00019799,2]
[424370465,1780803047000,-500.0,0.00019799,2]
[424370466,1780803047000,-411.91566631,0.00019799,2]
[424370467,1780803047000,-870.61433369,0.00019799,2]
[424370460,1780803047000,-1848.4325467,0.00018986,2]
[424370463,1780803047000,-500.0,0.00019726,2]
[424370464,1780803047000,-122.3128997,0.00019799,2]
[424370462,1780803047000,-500.0,0.00019452,2]
[424370461,1780803047000,-300.0,0.00019178,2]
[424370459,1780803047000,-3151.5674533,0.00018986,2]
[424370475,1780803047000,-500.0,0.00019799,2]
[424370478,1780803047000,-500.0,0.00019799,2]
[424370479,1780803047000,-500.0,0.00019799,2]
[424370491,1780803047000,-500.0,0.00019873,2]
[424370482,1780803047000,-500.0,0.00019799,2]
[424370497,1780803047000,-500.0,0.00019873,2]
[424370481,1780803047000,-500.0,0.00019799,2]
[424370494,1780803047000,-500.0,0.00019873,2]
[424370493,1780803047000,-586.49,0.00019873,2]
[424370498,1780803047000,-500.0,0.00019873,2]
[424370496,1780803047000,-615.64,0.00019873,2]
[424370492,1780803047000,-558.79,0.00019873,2]
[424370502,1780803047000,-706.65715334,0.00019873,2]
[424370490,1780803047000,-509.34,0.00019873,2]
[424370499,1780803047000,-500.0,0.00019873,2]
[424370495,1780803047000,-504.34261666,0.00019873,2]
[424370501,1780803047000,-4307.12309398,0.00019873,2]
[424370484,1780803047000,-933.75652203,0.00019871,2]
[424370485,1780803047000,-500.0,0.00019873,2]
[424370483,1780803047000,-500.0,0.00019799,2]
[424370487,1780803047000,-500.0,0.00019873,2]
[424370489,1780803047000,-500.0,0.00019873,2]
[424370480,1780803047000,-500.0,0.00019799,2]
[424370488,1780803047000,-952.93,0.00019873,2]
[424370486,1780803047000,-500.0,0.00019873,2]
[424370500,1780803047000,-538.69128479,0.00019873,2]
[424370503,1780803048000,-500.0,0.00019178,2]
[424370504,1780803048000,-617.01975268,0.00019873,2]
[424370505,1780803048000,-500.0,0.00019873,2]
[424370506,1780803048000,-500.0,0.00019873,2]
[424370507,1780803048000,-534.21573979,0.00019873,2]
[424370515,1780803048000,-545.5,0.00019873,2]
[424370512,1780803048000,-500.0,0.00019873,2]
[424370508,1780803048000,-500.0,0.00019873,2]
[424370513,1780803048000,-500.0,0.00019873,2]
[424370509,1780803048000,-879.79,0.00019873,2]
[424370511,1780803048000,-500.0,0.00019873,2]
[424370510,1780803048000,-500.0,0.00019873,2]
[424370514,1780803048000,-218.97450753,0.00019873,2]
[424370517,1780803079000,50000.0,0.00024945,30]
[424370518,1780803104000,50000.0,0.00024945,30]
[424370520,1780803142000,303.93192851,9.895e-05,2]
[424370519,1780803142000,500.0,9.895e-05,2]
[424370521,1780803142000,518.77851286,9.895e-05,2]
[424370524,1780803142000,500.0,9.895e-05,2]
[424370523,1780803142000,500.0,9.895e-05,2]
[424370525,1780803142000,500.0,9.895e-05,2]
[424370526,1780803142000,305.70105964,9.895e-05,2]
[424370522,1780803142000,500.0,9.895e-05,2]
[424370527,1780803166000,-179.02304333,0.00018711,2]
[424370531,1780803638000,-2245.78,0.00016274,2]
[424370532,1780803651000,-550.12,0.00016274,2]
[424370533,1780803663000,-411.56463453,0.00016274,2]
[424370534,1780803716000,-500.0,0.0001,2]
[424370535,1780803728000,-500.0,0.0001,2]
[424370536,1780803741000,-500.0,0.0001,2]
[424370537,1780803753000,-230.59463908,0.0001,2]
[424370540,1780803806000,-171.50192873,0.0001,2]
[424370541,1780803859000,-256.18900663,0.00016273,2]
[424370542,1780803913000,-166.0,0.00016273,2]
[424370544,1780804164000,-272.12605774,0.0001,2]
[424370583,1780804232000,-58.94153386,0.0001,2]
[424370585,1780804232000,-5000.0,0.0001,2]
[424370588,1780804232000,-512.86377601,0.0001579,2]
[424370586,1780804232000,-271.85066867,0.0001579,2]
[424370587,1780804232000,-433.45811007,0.0001579,2]
[424370612,1780804238000,-300.0,0.00016598,2]
[424370613,1780804238000,-300.0,0.00016598,2]
[424370618,1780804238000,-300.0,0.00016598,2]
[424370619,1780804238000,-300.0,0.00016598,2]
[424370601,1780804238000,-1200.0,0.00015632,2]
[424370621,1780804238000,-300.0,0.00016598,2]
[424370620,1780804238000,-300.0,0.00016598,2]
[424370614,1780804238000,-300.0,0.00016598,2]
[424370622,1780804238000,-300.0,0.00016598,2]
[424370611,1780804238000,-300.0,0.00016598,2]
[424370602,1780804238000,-3800.0,0.00015632,2]
[424370610,1780804238000,-300.0,0.00016598,2]
[424370608,1780804238000,-300.0,0.00016598,2]
[424370609,1780804238000,-300.0,0.00016598,2]
[424370607,1780804238000,-300.0,0.00016598,2]
[424370606,1780804238000,-300.0,0.00016598,2]
[424370604,1780804238000,-3048.61722358,0.0001595,2]
[424370605,1780804238000,-167.09,0.00016573,2]
[424370603,1780804238000,-2580.65470957,0.0001579,2]
[424370625,1780804238000,-573.58797058,0.00017411,2]
[424370616,1780804238000,-300.0,0.00016598,2]
[424370624,1780804238000,-223.599382,0.00017118,2]
[424370623,1780804238000,-1000.0,0.0001695,2]
[424370629,1780804238000,-5000.0,0.00018177,2]
[424370626,1780804238000,-2117.9440161,0.00017413,2]
[424370649,1780804238000,-500.0,0.00018977,2]
[424370646,1780804238000,-226.99729032,0.00018977,2]
[424370647,1780804238000,-500.0,0.00018977,2]
[424370648,1780804238000,-500.0,0.00018977,2]
[424370644,1780804238000,-500.0,0.00018977,2]
[424370643,1780804238000,-500.0,0.00018977,2]
[424370641,1780804238000,-500.0,0.00018977,2]
[424370642,1780804238000,-500.0,0.00018977,2]
[424370637,1780804238000,-157.87831603,0.00018977,2]
[424370640,1780804238000,-500.0,0.00018977,2]
[424370645,1780804238000,-500.0,0.00018977,2]
[424370638,1780804238000,-286.62771357,0.00018977,2]
[424370636,1780804238000,-485.34,0.00018904,2]
[424370633,1780804238000,-485.34,0.0001863,2]
[424370635,1780804238000,-923.46368667,0.000187,2]
[424370634,1780804238000,-1994.77,0.00018692,2]
[424370631,1780804238000,-5000.0,0.00018177,2]
[424370632,1780804238000,-5000.0,0.00018177,2]
[424370630,1780804238000,-5000.0,0.00018177,2]
[424370628,1780804238000,-5028.12808207,0.00018177,2]
[424370627,1780804238000,-151.0,0.00017576,2]
[424370639,1780804238000,-500.0,0.00018977,2]
[424370690,1780804239000,-500.0,0.00019177,2]
[424370692,1780804239000,-500.0,0.00019177,2]
[424370688,1780804239000,-500.0,0.00019177,2]
[424370693,1780804239000,-500.0,0.00019177,2]
[424370691,1780804239000,-500.0,0.00019177,2]
[424370689,1780804239000,-500.0,0.00019177,2]
[424370684,1780804239000,-500.0,0.00019177,2]
[424370687,1780804239000,-500.0,0.00019177,2]
[424370685,1780804239000,-500.0,0.00019177,2]
[424370682,1780804239000,-500.0,0.00019177,2]
[424370683,1780804239000,-500.0,0.00019177,2]
[424370694,1780804239000,-500.0,0.00019177,2]
[424370686,1780804239000,-500.0,0.00019177,2]
[424370696,1780804239000,-500.0,0.00019177,2]
[424370707,1780804239000,-766.24,0.00019178,2]
[424370698,1780804239000,-500.0,0.00019177,2]
[424370699,1780804239000,-500.0,0.00019177,2]
[424370695,1780804239000,-500.0,0.00019177,2]
[424370697,1780804239000,-500.0,0.00019177,2]
[424370702,1780804239000,-500.0,0.00019178,2]
[424370701,1780804239000,-605.03071134,0.00019177,2]
[424370703,1780804239000,-500.0,0.00019178,2]
[424370704,1780804239000,-500.0,0.00019178,2]
[424370705,1780804239000,-500.0,0.00019178,2]
[424370706,1780804239000,-500.0,0.00019178,2]
[424370709,1780804239000,-500.0,0.00019178,2]
[424370708,1780804239000,-500.0,0.00019178,2]
[424370681,1780804239000,-513.18575584,0.00019177,2]
[424370700,1780804239000,-500.0,0.00019177,2]
[424370680,1780804239000,-369.23242083,0.00019177,2]
[424370715,1780804239000,-500.0,0.00019178,2]
[424370676,1780804239000,-500.0,0.00019177,2]
[424370710,1780804239000,-500.0,0.00019178,2]
[424370650,1780804239000,-500.0,0.00018977,2]
[424370651,1780804239000,-500.0,0.00018977,2]
[424370652,1780804239000,-500.0,0.00018977,2]
[424370654,1780804239000,-1994.77,0.00018999,2]
[424370653,1780804239000,-314.93588876,0.00018977,2]
[424370656,1780804239000,-600.0,0.00019175,2]
[424370655,1780804239000,-22003.99088807,0.00019,2]
[424370658,1780804239000,-1994.77,0.00019177,2]
[424370657,1780804239000,-1994.77,0.00019177,2]
[424370661,1780804239000,-1994.77,0.00019177,2]
[424370662,1780804239000,-500.0,0.00019177,2]
[424370659,1780804239000,-1994.77,0.00019177,2]
[424370660,1780804239000,-1994.77,0.00019177,2]
[424370664,1780804239000,-500.0,0.00019177,2]
[424370663,1780804239000,-500.0,0.00019177,2]
[424370668,1780804239000,-500.0,0.00019177,2]
[424370666,1780804239000,-500.0,0.00019177,2]
[424370665,1780804239000,-500.0,0.00019177,2]
[424370667,1780804239000,-500.0,0.00019177,2]
[424370669,1780804239000,-500.0,0.00019177,2]
[424370671,1780804239000,-500.0,0.00019177,2]
[424370670,1780804239000,-500.0,0.00019177,2]
[424370672,1780804239000,-500.0,0.00019177,2]
[424370674,1780804239000,-500.0,0.00019177,2]
[424370673,1780804239000,-500.0,0.00019177,2]
[424370675,1780804239000,-499.9,0.00019177,2]
[424370677,1780804239000,-500.0,0.00019177,2]
[424370679,1780804239000,-500.0,0.00019177,2]
[424370678,1780804239000,-500.0,0.00019177,2]
[424370712,1780804239000,-500.0,0.00019178,2]
[424370732,1780804239000,-794.72,0.00019178,2]
[424370713,1780804239000,-511.98693594,0.00019178,2]
[424370750,1780804239000,-500.0,0.00019178,2]
[424370748,1780804239000,-500.0,0.00019178,2]
[424370749,1780804239000,-500.0,0.00019178,2]
[424370752,1780804239000,-500.0,0.00019178,2]
[424370751,1780804239000,-500.0,0.00019178,2]
[424370753,1780804239000,-500.0,0.00019178,2]
[424370756,1780804239000,-1229.1,0.00019178,2]
[424370759,1780804239000,-2018.06,0.00019178,2]
[424370755,1780804239000,-1315.24,0.00019178,2]
[424370758,1780804239000,-500.0,0.00019178,2]
[424370757,1780804239000,-500.0,0.00019178,2]
[424370711,1780804239000,-693.62,0.00019178,2]
[424370764,1780804239000,-500.0,0.00019178,2]
[424370747,1780804239000,-575.65,0.00019178,2]
[424370761,1780804239000,-521.67,0.00019178,2]
[424370762,1780804239000,-581.42,0.00019178,2]
[424370763,1780804239000,-500.0,0.00019178,2]
[424370765,1780804239000,-500.0,0.00019178,2]
[424370767,1780804239000,-748.85,0.00019178,2]
[424370766,1780804239000,-3565.53,0.00019178,2]
[424370768,1780804239000,-1436.47,0.00019178,2]
[424370769,1780804239000,-1625.44,0.00019178,2]
[424370770,1780804239000,-500.0,0.00019178,2]
[424370771,1780804239000,-500.0,0.00019178,2]
[424370775,1780804239000,-500.0,0.00019178,2]
[424370772,1780804239000,-481.90251612,0.00019178,2]
[424370774,1780804239000,-500.0,0.00019178,2]
[424370773,1780804239000,-500.0,0.00019178,2]
[424370760,1780804239000,-2011.75,0.00019178,2]
[424370742,1780804239000,-618.46,0.00019178,2]
[424370754,1780804239000,-1189.98,0.00019178,2]
[424370743,1780804239000,-500.0,0.00019178,2]
[424370745,1780804239000,-500.0,0.00019178,2]
[424370716,1780804239000,-500.0,0.00019178,2]
[424370714,1780804239000,-430.37893217,0.00019178,2]
[424370720,1780804239000,-3845.0594,0.00019178,2]
[424370718,1780804239000,-500.0,0.00019178,2]
[424370719,1780804239000,-336.33194477,0.00019178,2]
[424370722,1780804239000,-774.71,0.00019178,2]
[424370723,1780804239000,-500.0,0.00019178,2]
[424370721,1780804239000,-500.0,0.00019178,2]
[424370724,1780804239000,-500.0,0.00019178,2]
[424370725,1780804239000,-500.0,0.00019178,2]
[424370727,1780804239000,-500.0,0.00019178,2]
[424370726,1780804239000,-500.0,0.00019178,2]
[424370728,1780804239000,-500.0,0.00019178,2]
[424370717,1780804239000,-500.0,0.00019178,2]
[424370730,1780804239000,-594.93,0.00019178,2]
[424370729,1780804239000,-747.16,0.00019178,2]
[424370741,1780804239000,-500.0,0.00019178,2]
[424370739,1780804239000,-500.0,0.00019178,2]
[424370746,1780804239000,-500.0,0.00019178,2]
[424370740,1780804239000,-3303.38,0.00019178,2]
[424370736,1780804239000,-500.0,0.00019178,2]
[424370744,1780804239000,-168.47193381,0.00019178,2]
[424370737,1780804239000,-500.0,0.00019178,2]
[424370738,1780804239000,-548.29676272,0.00019178,2]
[424370735,1780804239000,-1056.29,0.00019178,2]
[424370733,1780804239000,-546.93867457,0.00019178,2]
[424370731,1780804239000,-3763.73,0.00019178,2]
[424370734,1780804239000,-500.0,0.00019178,2]
[424370819,1780804240000,-500.0,0.00019178,2]
[424370821,1780804240000,-500.0,0.00019178,2]
[424370818,1780804240000,-500.0,0.00019178,2]
[424370820,1780804240000,-500.0,0.00019178,2]
[424370811,1780804240000,-752.82,0.00019178,2]
[424370817,1780804240000,-1268.88,0.00019178,2]
[424370814,1780804240000,-500.0,0.00019178,2]
[424370815,1780804240000,-631.04,0.00019178,2]
[424370812,1780804240000,-500.0,0.00019178,2]
[424370813,1780804240000,-163.84084581,0.00019178,2]
[424370809,1780804240000,-200.38727698,0.00019178,2]
[424370823,1780804240000,-500.0,0.00019178,2]
[424370816,1780804240000,-467.84886807,0.00019178,2]
[424370824,1780804240000,-500.0,0.00019178,2]
[424370830,1780804240000,-1166.06,0.00019178,2]
[424370825,1780804240000,-2163.85,0.00019178,2]
[424370827,1780804240000,-500.0,0.00019178,2]
[424370826,1780804240000,-806.48,0.00019178,2]
[424370828,1780804240000,-500.0,0.00019178,2]
[424370829,1780804240000,-500.0,0.00019178,2]
[424370831,1780804240000,-666.9,0.00019178,2]
[424370832,1780804240000,-1634.93,0.00019178,2]
[424370834,1780804240000,-500.0,0.00019178,2]
[424370833,1780804240000,-556.36,0.00019178,2]
[424370836,1780804240000,-500.0,0.00019178,2]
[424370835,1780804240000,-500.0,0.00019178,2]
[424370838,1780804240000,-500.0,0.00019178,2]
[424370807,1780804240000,-540.6,0.00019178,2]
[424370822,1780804240000,-500.0,0.00019178,2]
[424370810,1780804240000,-724.52,0.00019178,2]
[424370839,1780804240000,-500.0,0.00019178,2]
[424370805,1780804240000,-907.0,0.00019178,2]
[424370776,1780804240000,-500.0,0.00019178,2]
[424370777,1780804240000,-500.0,0.00019178,2]
[424370778,1780804240000,-500.0,0.00019178,2]
[424370780,1780804240000,-500.0,0.00019178,2]
[424370779,1780804240000,-500.0,0.00019178,2]
[424370782,1780804240000,-500.0,0.00019178,2]
[424370784,1780804240000,-537.62,0.00019178,2]
[424370781,1780804240000,-500.0,0.00019178,2]
[424370785,1780804240000,-500.0,0.00019178,2]
[424370783,1780804240000,-500.0,0.00019178,2]
[424370787,1780804240000,-1093.54,0.00019178,2]
[424370786,1780804240000,-4148.7,0.00019178,2]
[424370788,1780804240000,-642.8719212,0.00019178,2]
[424370789,1780804240000,-500.0,0.00019178,2]
[424370790,1780804240000,-512.23,0.00019178,2]
[424370791,1780804240000,-500.0,0.00019178,2]
[424370793,1780804240000,-604.45082174,0.00019178,2]
[424370792,1780804240000,-500.0,0.00019178,2]
[424370797,1780804240000,-564.33,0.00019178,2]
[424370795,1780804240000,-500.0,0.00019178,2]
[424370794,1780804240000,-1336.08,0.00019178,2]
[424370798,1780804240000,-7619.79,0.00019178,2]
[424370796,1780804240000,-446.08368703,0.00019178,2]
[424370800,1780804240000,-500.0,0.00019178,2]
[424370799,1780804240000,-5161.56,0.00019178,2]
[424370801,1780804240000,-500.0,0.00019178,2]
[424370803,1780804240000,-500.0,0.00019178,2]
[424370802,1780804240000,-500.0,0.00019178,2]
[424370806,1780804240000,-500.0,0.00019178,2]
[424370808,1780804240000,-500.0,0.00019178,2]
[424370840,1780804240000,-500.0,0.00019178,2]
[424370804,1780804240000,-500.0,0.00019178,2]
[424370841,1780804240000,-2526.36,0.00019178,2]
[424370906,1780804240000,-578.6,0.00019178,2]
[424370877,1780804240000,-500.0,0.00019178,2]
[424370876,1780804240000,-819.43,0.00019178,2]
[424370881,1780804240000,-500.0,0.00019178,2]
[424370880,1780804240000,-2214.66,0.00019178,2]
[424370878,1780804240000,-500.0,0.00019178,2]
[424370883,1780804240000,-729.74,0.00019178,2]
[424370882,1780804240000,-500.0,0.00019178,2]
[424370884,1780804240000,-1089.67,0.00019178,2]
[424370885,1780804240000,-500.0,0.00019178,2]
[424370886,1780804240000,-506.55659501,0.00019178,2]
[424370888,1780804240000,-500.0,0.00019178,2]
[424370887,1780804240000,-500.0,0.00019178,2]
[424370889,1780804240000,-605.52976559,0.00019178,2]
[424370891,1780804240000,-1133.96,0.00019178,2]
[424370892,1780804240000,-500.0,0.00019178,2]
[424370894,1780804240000,-500.0,0.00019178,2]
[424370895,1780804240000,-500.0,0.00019178,2]
[424370893,1780804240000,-500.0,0.00019178,2]
[424370897,1780804240000,-1256.47,0.00019178,2]
[424370896,1780804240000,-1286.01,0.00019178,2]
[424370900,1780804240000,-500.0,0.00019178,2]
[424370898,1780804240000,-500.0,0.00019178,2]
[424370901,1780804240000,-3645.83,0.00019178,2]
[424370903,1780804240000,-500.0,0.00019178,2]
[424370902,1780804240000,-1146.84,0.00019178,2]
[424370905,1780804240000,-500.0,0.00019178,2]
[424370904,1780804240000,-300.0,0.00019178,2]
[424370837,1780804240000,-500.0,0.00019178,2]